bitfinex/quotes_BTCUSD_20241120
["timestamp","ask_amount","ask_price","bid_price","bid_amount"]
[1732066434090,0.11124002,91863.0,91862.0,0.24626015]
[1732066434332,0.11124002,91863.0,91861.0,0.19501353]
[1732066434549,0.10906255,91862.0,91860.0,0.29499466]
[1732066434762,0.10906255,91862.0,91861.0,0.1]
[1732066435663,0.10906255,91862.0,91860.0,0.1]
[1732066435913,0.10906255,91862.0,91860.0,0.29499466]
[1732066436339,0.10906255,91862.0,91861.0,0.14623417]
[1732066436548,0.10906255,91862.0,91861.0,0.24623417]
[1732066437665,0.10906255,91862.0,91861.0,0.1]
[1732066437891,0.10906255,91862.0,91860.0,0.14623417]
[1732066437892,0.10906255,91862.0,91860.0,0.1]
[1732066438131,0.00217747,91861.0,91860.0,0.1]
[1732066438363,0.11124002,91861.0,91860.0,0.1]
[1732066438840,0.11124002,91861.0,91860.0,0.24619342]
[1732066443488,0.11124002,91861.0,91857.0,0.1]
[1732066443718,0.10906255,91860.0,91857.0,0.1]
[1732066443953,0.00217747,91859.0,91857.0,0.1]
[1732066444196,0.10906255,91858.0,91857.0,0.1]
[1732066444618,0.10906255,91858.0,91857.0,0.24613621]
[1732066448457,0.10906255,91858.0,91853.0,0.04498631]
[1732066448681,0.00217747,91857.0,91853.0,0.04498631]
[1732066448908,0.10906255,91856.0,91853.0,0.04498631]
[1732066449120,0.00217747,91855.0,91853.0,0.04498631]
[1732066449326,0.10906255,91854.0,91853.0,0.04498631]
[1732066449809,0.00217747,91866.0,91854.0,0.1]
[1732066450032,0.10906255,91865.0,91854.0,0.1]
[1732066450248,0.00217747,91864.0,91854.0,0.1]
[1732066450460,0.10906255,91863.0,91854.0,0.1]
[1732066450687,0.00217747,91862.0,91854.0,0.1]
[1732066450948,0.10906255,91861.0,91854.0,0.1]
[1732066451162,0.00217747,91860.0,91854.0,0.1]
[1732066451388,0.10906255,91859.0,91854.0,0.1]
[1732066451601,0.00217747,91858.0,91854.0,0.1]
[1732066451819,0.10906255,91857.0,91854.0,0.1]
[1732066452024,0.00217747,91856.0,91854.0,0.1]
[1732066452237,0.10906255,91855.0,91854.0,0.1]
[1732066453125,0.00217747,91871.0,91854.0,0.1]
[1732066453344,0.10906255,91870.0,91854.0,0.1]
[1732066453583,0.00217747,91869.0,91854.0,0.1]
[1732066453789,0.10906255,91868.0,91854.0,0.1]
[1732066454018,0.10906255,91868.0,91853.0,0.16858631]
[1732066454019,0.00217747,91867.0,91866.0,0.1]
[1732066454224,0.11124002,91867.0,91866.0,0.1]
[1732066456620,0.11124002,91867.0,91866.0,0.14417399]
[1732066457048,0.10906255,91867.0,91866.0,0.22247399]
[1732066457540,0.10906255,91867.0,91866.0,0.04417399]
[1732066457990,0.05375556,91874.0,91858.0,0.1783]
[1732066458211,0.11124002,91873.0,91858.0,0.1783]
[1732066458443,0.11124002,91873.0,91858.0,0.0783]
[1732066458671,0.11124002,91873.0,91859.0,0.1]
[1732066459118,0.11124002,91873.0,91858.0,0.12329897]
[1732066459119,0.11124002,91873.0,91870.0,0.1]
[1732066459349,0.11124002,91873.0,91871.0,0.1236]
[1732066459554,0.11124002,91873.0,91872.0,0.1]
[1732066462740,0.05375556,91874.0,91872.0,0.39207731]
[1732066462965,0.05375556,91874.0,91873.0,0.39207731]
[1732066463183,0.05375556,91874.0,91873.0,0.1]
[1732066463645,0.04978795,91874.0,91873.0,0.1]
[1732066464100,0.01006158,91874.0,91872.0,0.14404449]
[1732066464527,0.01006158,91874.0,91872.0,0.1]
[1732066465151,0.01006158,91874.0,91873.0,0.29204647]
[1732066465410,0.01006158,91874.0,91873.0,0.1]
[1732066466104,0.01006158,91874.0,91873.0,0.39206908]
[1732066466336,0.0008533,91885.0,91874.0,0.1]
[1732066466585,0.11124002,91884.0,91883.0,0.1]
[1732066466831,0.10906255,91884.0,91883.0,0.1]
[1732066467068,0.0008533,91885.0,91884.0,0.0788]
[1732066467306,0.00217747,91905.0,91884.0,0.0788]
[1732066467529,0.01,91908.0,91894.0,0.09735264]
[1732066467530,0.11124002,91895.0,91894.0,0.09735264]
[1732066467750,0.11124002,91895.0,91885.0,0.1]
[1732066467751,0.11124002,91895.0,91893.0,0.14602713]
[1732066468250,0.11124002,91895.0,91894.0,0.1]
[1732066469158,0.11124002,91895.0,91894.0,0.0973438]
[1732066469374,0.11124002,91895.0,91892.0,0.1]
[1732066469375,0.11124002,91895.0,91893.0,0.0973438]
[1732066470036,0.11124002,91895.0,91894.0,0.0973438]
[1732066471146,0.11124002,91895.0,91893.0,0.0973438]
[1732066471634,0.00217747,91895.0,91893.0,0.0973438]
[1732066471867,0.0807,91919.0,91895.0,0.0788]
[1732066471868,0.00217747,91918.0,91895.0,0.0788]
[1732066472080,0.0004,91919.0,91895.0,0.0788]
[1732066472081,0.11124002,91917.0,91904.0,0.22379255]
[1732066472297,0.10906255,91917.0,91905.0,0.1]
[1732066473222,0.00217747,91916.0,91905.0,0.1]
[1732066473430,0.11124002,91916.0,91905.0,0.1]
[1732066473650,0.10906255,91915.0,91905.0,0.1]
[1732066473848,0.00217747,91914.0,91905.0,0.1]
[1732066474096,0.142699,91913.0,91905.0,0.04337505]
[1732066474351,0.39349116,91912.0,91905.0,0.04337505]
[1732066474559,0.0004,91919.0,91893.0,0.0788]
[1732066474560,0.50037624,91911.0,91893.0,0.0788]
[1732066474790,0.09687277,91895.0,91893.0,0.0788]
[1732066475005,0.24218194,91903.0,91893.0,0.0788]
[1732066475006,0.13268669,91894.0,91893.0,0.0788]
[1732066475224,0.00217747,91894.0,91893.0,0.0788]
[1732066475706,0.00217747,91895.0,91893.0,0.0788]
[1732066476154,0.25433128,91900.0,91893.0,0.0788]
[1732066476155,0.00217747,91896.0,91893.0,0.0788]
[1732066476372,0.11124002,91899.0,91893.0,0.0788]
[1732066477057,0.03360509,91898.0,91893.0,0.0788]
[1732066477275,0.00217747,91897.0,91893.0,0.12244408]
[1732066477503,0.00217747,91897.0,91894.0,0.1]
[1732066478373,0.10906255,91896.0,91894.0,0.1]
[1732066478608,0.00217747,91895.0,91893.0,0.04364408]
[1732066478839,0.10906255,91894.0,91893.0,0.04364408]
[1732066479065,0.10906255,91894.0,91887.0,0.1]
[1732066479281,0.03358549,91893.0,91887.0,0.1]
[1732066479515,0.1452301,91914.0,91887.0,0.1]
[1732066479516,0.10906255,91910.0,91887.0,0.1]
[1732066479747,0.11124002,91909.0,91888.0,0.129]
[1732066479977,0.00217747,91914.0,91893.0,0.182]
[1732066480214,0.0004,91919.0,91895.0,0.047]
[1732066480215,0.11124002,91913.0,91895.0,0.047]
[1732066480428,0.0004,91919.0,91900.0,0.082]
[1732066480429,0.10906255,91918.0,91900.0,0.082]
[1732066480638,0.10906255,91918.0,91900.0,0.08417604]
[1732066480850,0.00217747,91917.0,91901.0,0.147]
[1732066481067,0.11124002,91917.0,91901.0,0.147]
[1732066481301,0.03358088,91916.0,91901.0,0.147]
[1732066481522,0.00217747,91915.0,91901.0,0.147]
[1732066481733,0.00217747,91916.0,91901.0,0.147]
[1732066483035,0.09678591,91907.0,91901.0,0.147]
[1732066483248,0.09678591,91926.0,91901.0,0.147]
[1732066483483,0.00217747,91916.0,91901.0,0.147]
[1732066484162,0.09678591,91912.0,91901.0,0.147]
[1732066484368,0.24281779,91921.0,91901.0,0.147]
[1732066484369,0.0335842,91911.0,91901.0,0.147]
[1732066484579,0.00217747,91916.0,91901.0,0.147]
[1732066485037,0.13036849,91915.0,91901.0,0.147]
[1732066485253,0.03576005,91914.0,91901.0,0.147]
[1732066485484,0.00217747,91914.0,91901.0,0.147]
[1732066485694,0.0004,91919.0,91901.0,0.147]
[1732066485695,0.00217747,91916.0,91901.0,0.147]
[1732066486821,0.10906255,91915.0,91901.0,0.147]
[1732066487049,0.00217747,91914.0,91901.0,0.147]
[1732066487288,0.00217747,91914.0,91900.0,0.082]
[1732066487289,0.10906255,91913.0,91900.0,0.082]
[1732066487549,0.00217747,91912.0,91900.0,0.082]
[1732066487763,0.10906255,91911.0,91900.0,0.082]
[1732066487979,0.00217747,91910.0,91900.0,0.082]
[1732066488187,0.10906255,91909.0,91900.0,0.082]
[1732066488628,0.00217747,91918.0,91900.0,0.082]
[1732066488888,0.10906255,91917.0,91900.0,0.082]
[1732066489113,0.00217747,91916.0,91900.0,0.082]
[1732066489347,0.10906255,91915.0,91900.0,0.082]
[1732066489564,0.00217747,91914.0,91900.0,0.082]
[1732066489778,0.10906255,91913.0,91900.0,0.082]
[1732066489995,0.00217747,91912.0,91900.0,0.082]
[1732066490209,0.10906255,91911.0,91900.0,0.082]
[1732066490426,0.00217747,91910.0,91900.0,0.082]
[1732066490631,0.10906255,91909.0,91900.0,0.082]
[1732066490838,0.00217747,91908.0,91900.0,0.082]
[1732066491061,0.10906255,91907.0,91900.0,0.082]
[1732066491284,0.00217747,91906.0,91900.0,0.082]
[1732066491516,0.10906255,91905.0,91900.0,0.082]
[1732066491759,0.00217747,91904.0,91900.0,0.082]
[1732066491964,0.11124002,91904.0,91900.0,0.082]
[1732066492382,0.11124002,91904.0,91895.0,0.04505167]
[1732066492383,0.11124002,91904.0,91895.0,0.12705167]
[1732066492633,0.11124002,91904.0,91896.0,0.1]
[1732066493258,0.10906255,91903.0,91896.0,0.1]
[1732066493461,0.00217747,91902.0,91896.0,0.1017064]
[1732066493673,0.11124002,91902.0,91896.0,0.0017064]
[1732066494751,0.11124002,91902.0,91893.0,0.03574256]
[1732066495198,0.11124002,91902.0,91872.0,0.1]
[1732066495199,0.11124002,91902.0,91873.0,0.01]
[1732066495407,0.11124002,91902.0,91873.0,0.37510555]
[1732066495706,0.11124002,91902.0,91874.0,0.119541]
[1732066496345,0.11124002,91902.0,91874.0,0.129541]
[1732066496670,0.11124002,91902.0,91875.0,0.274713]
[1732066496864,0.11124002,91902.0,91875.0,0.1]
[1732066497079,0.11124002,91902.0,91877.0,0.1]
[1732066497277,0.11124002,91902.0,91879.0,0.1]
[1732066497513,0.11124002,91902.0,91900.0,0.1]
[1732066498130,0.11124002,91902.0,91901.0,0.14564892]
[1732066498275,0.10906255,91902.0,91901.0,0.1]
[1732066498487,0.00217747,91912.0,91902.0,0.1]
[1732066498688,0.0008532,91916.0,91902.0,0.1]
[1732066498689,0.10906255,91911.0,91905.0,0.09709925]
[1732066498938,0.10906255,91911.0,91904.0,0.09709925]
[1732066499154,0.10906255,91911.0,91902.0,0.19709925]
[1732066499155,0.00217747,91910.0,91902.0,0.19709925]
[1732066499357,0.10906255,91909.0,91902.0,0.19709925]
[1732066499607,0.00217747,91908.0,91902.0,0.09709925]
[1732066499844,0.00217747,91908.0,91892.0,0.24283125]
[1732066499845,0.01,91951.0,91910.0,0.01]
[1732066500079,0.10906255,91938.0,91918.0,0.147]
[1732066500316,0.01,91958.0,91919.0,0.19923076]
[1732066500586,0.11031505,91939.0,91919.0,0.1]
[1732066501014,0.11031505,91939.0,91920.0,0.082]
[1732066502096,0.11031505,91939.0,91918.0,0.047]
[1732066502097,0.11031505,91939.0,91918.0,0.03140053]
[1732066502738,0.11031505,91939.0,91918.0,0.12845562]
[1732066503021,0.09912229,91939.0,91931.0,0.09705509]
[1732066503241,0.09912229,91939.0,91927.0,0.09705509]
[1732066503466,0.09912229,91939.0,91928.0,0.09705509]
[1732066503890,0.09912229,91939.0,91924.0,0.14558264]
[1732066503891,0.09912229,91939.0,91927.0,0.09705509]
[1732066504374,0.09912229,91939.0,91924.0,0.09705509]
[1732066504789,0.09912229,91939.0,91922.0,0.1]
[1732066504790,0.09912229,91939.0,91925.0,0.09152643]
[1732066505035,0.09912229,91939.0,91920.0,0.14558264]
[1732066505259,0.09912229,91939.0,91916.0,0.14558264]
[1732066505480,0.09912229,91939.0,91905.0,0.129]
[1732066505481,0.09912229,91939.0,91914.0,0.14558264]
[1732066506132,0.09912229,91939.0,91919.0,0.0017056]
[1732066506360,0.09997509,91939.0,91919.0,0.0017056]
[1732066508336,0.09997509,91939.0,91919.0,0.04659867]
[1732066508337,0.10906255,91938.0,91919.0,0.04659867]
[1732066508544,0.0773,91937.0,91919.0,0.04659867]
[1732066508757,0.10906255,91936.0,91919.0,0.0017056]
[1732066509181,0.0108528,91939.0,91919.0,0.0017056]
[1732066509182,0.1243,91931.0,91919.0,0.0017056]
[1732066509392,0.002,91922.0,91919.0,0.0017056]
[1732066509629,0.10906255,91921.0,91919.0,0.0017056]
[1732066510085,0.0772,91920.0,91919.0,0.0017056]
[1732066510294,0.18626255,91920.0,91919.0,0.0017056]
[1732066511419,0.19626255,91920.0,91919.0,0.0017056]
[1732066511799,0.19626255,91920.0,91919.0,0.04687395]
[1732066512070,0.19826255,91920.0,91919.0,0.0017056]
[1732066512224,0.19626255,91920.0,91919.0,0.0017056]
[1732066512983,0.18626255,91920.0,91919.0,0.0017056]
[1732066515958,0.19626255,91920.0,91919.0,0.0017056]
[1732066516171,0.19826255,91920.0,91919.0,0.0017056]
[1732066516409,0.22126255,91920.0,91919.0,0.0017056]
[1732066517283,0.21926255,91920.0,91919.0,0.0017056]
[1732066517494,0.26836255,91920.0,91919.0,0.0017056]
[1732066518974,0.26636255,91920.0,91919.0,0.0017056]
[1732066519220,0.26836255,91920.0,91919.0,0.0017056]
[1732066519813,0.26636255,91920.0,91919.0,0.0017056]
[1732066520015,0.26836255,91920.0,91919.0,0.0017056]
[1732066521022,0.26636255,91920.0,91919.0,0.0017056]
[1732066521735,0.19626255,91920.0,91919.0,0.0017056]
[1732066522711,0.24436255,91920.0,91919.0,0.0017056]
[1732066523555,0.19626255,91920.0,91919.0,0.0017056]
[1732066525204,0.21926255,91920.0,91919.0,0.0017056]
[1732066525450,0.19626255,91920.0,91919.0,0.0017056]
[1732066525993,0.20626255,91920.0,91919.0,0.0017056]
[1732066526205,0.27916255,91920.0,91919.0,0.0017056]
[1732066526639,0.29938897,91920.0,91919.0,0.0017056]
[1732066528016,0.29938897,91920.0,91873.0,0.1]
[1732066528214,0.10906255,91882.0,91867.0,0.09683958]
[1732066528431,0.10906255,91882.0,91858.0,0.36829895]
[1732066528432,0.10906255,91882.0,91862.0,0.09683958]
[1732066528681,0.10906255,91882.0,91859.0,0.14525937]
[1732066528682,0.10906255,91882.0,91858.0,0.1262]
[1732066528871,0.10906255,91882.0,91866.0,0.04487976]
[1732066529078,0.10906255,91882.0,91866.0,0.0017066]
[1732066531286,0.10906255,91882.0,91866.0,0.0986668]
[1732066531515,0.10906255,91882.0,91867.0,0.0991373]
[1732066531699,0.01,91907.0,91867.0,0.0991373]
[1732066531700,0.01,91906.0,91871.0,0.1803]
[1732066531920,0.10906255,91904.0,91874.0,0.0969602]
[1732066533152,0.10906255,91904.0,91875.0,0.0969602]
[1732066533408,0.04232864,91933.0,91881.0,0.1262]
[1732066533566,0.10906255,91931.0,91897.0,0.1]
[1732066533770,0.10906255,91931.0,91898.0,0.00217603]
[1732066534609,0.10906255,91931.0,91900.0,0.0969602]
[1732066534854,0.10906255,91931.0,91901.0,0.09913615]
[1732066535323,0.10906255,91931.0,91902.0,0.0969602]
[1732066535539,0.10906255,91931.0,91903.0,0.00217595]
[1732066535540,0.0202105,91930.0,91903.0,0.00217595]
[1732066535718,0.12927305,91929.0,91901.0,0.00217595]
[1732066535941,0.10906255,91929.0,91901.0,0.00217595]
[1732066536389,0.10906255,91929.0,91903.0,0.0969602]
[1732066536593,0.10906255,91929.0,91916.0,0.0969602]
[1732066537037,0.10906255,91929.0,91915.0,0.1]
[1732066537038,0.10906255,91929.0,91915.0,0.1969602]
[1732066537256,0.10906255,91929.0,91917.0,0.0969602]
[1732066537460,0.10906255,91929.0,91915.0,0.1]
[1732066537461,0.10906255,91929.0,91915.0,0.1969602]
[1732066537879,0.10906255,91929.0,91915.0,0.0971684]
[1732066538087,0.10906255,91929.0,91917.0,0.0971684]
[1732066538886,0.10906255,91929.0,91921.0,0.0971684]
[1732066539110,0.10906255,91929.0,91923.0,0.0971684]
[1732066539345,0.0008528,91939.0,91923.0,0.0971684]
[1732066539559,0.10991535,91939.0,91927.0,0.0971684]
[1732066539764,0.0008529,91931.0,91928.0,0.0971684]
[1732066540237,0.0008529,91931.0,91929.0,0.0971684]
[1732066540450,0.0008529,91931.0,91927.0,0.1]
[1732066540890,0.0008529,91931.0,91927.0,0.1971684]
[1732066541099,0.0008529,91931.0,91930.0,0.0971684]
[1732066541550,0.0008529,91931.0,91929.0,0.1]
[1732066541752,0.0008529,91931.0,91929.0,0.2457526]
[1732066541962,0.0008529,91931.0,91929.0,0.1]
[1732066542201,0.0008529,91931.0,91930.0,0.00217536]
[1732066542424,0.0008529,91931.0,91930.0,0.10217536]
[1732066543256,0.0008529,91931.0,91930.0,0.1]
[1732066543400,0.0008529,91931.0,91927.0,0.1]
[1732066543599,0.0008529,91931.0,91926.0,0.1]
[1732066543813,0.0008529,91931.0,91927.0,0.00217529]
[1732066544460,0.0008529,91931.0,91928.0,0.1]
[1732066544609,0.0008529,91931.0,91929.0,0.00217529]
[1732066545026,0.0008529,91931.0,91928.0,0.1]
[1732066545463,0.0008529,91931.0,91927.0,0.0021754]
[1732066545884,0.0008529,91931.0,91927.0,0.29357064]
[1732066546080,0.0008529,91931.0,91928.0,0.1]
[1732066547140,0.0008529,91931.0,91927.0,0.0021754]
[1732066548580,0.0008529,91931.0,91930.0,0.24248843]
[1732066548799,0.0008529,91931.0,91930.0,0.1]
[1732066549211,0.0008529,91931.0,91930.0,0.34246743]
[1732066549382,0.0008529,91931.0,91930.0,0.1]
[1732066549585,0.0008529,91931.0,91930.0,0.34246752]
[1732066549810,0.0008529,91931.0,91930.0,0.1]
[1732066550067,0.0008529,91931.0,91929.0,0.1]
[1732066550215,0.0008529,91931.0,91930.0,0.19396913]
[1732066550451,0.0008529,91931.0,91930.0,0.29396834]
[1732066550687,0.0008529,91931.0,91930.0,0.29396686]
[1732066550909,0.0008529,91931.0,91930.0,0.1]
[1732066551136,0.0008529,91931.0,91930.0,0.17977539]
[1732066551554,0.0008529,91931.0,91930.0,0.22537539]
[1732066551798,0.0008529,91931.0,91930.0,0.2232]
[1732066553255,0.0008529,91931.0,91930.0,0.5139493]
[1732066553634,0.0008529,91931.0,91930.0,0.2232]
[1732066558776,0.0004,91959.0,91930.0,0.34226255]
[1732066559169,0.0004,91959.0,91948.0,0.09682255]
[1732066559369,0.0004,91959.0,91949.0,0.19899731]
[1732066560256,0.0004,91959.0,91949.0,0.10217476]
[1732066560925,0.0004,91959.0,91949.0,0.19682255]
[1732066561164,0.077,91973.0,91949.0,0.19682255]
[1732066561394,0.10906255,91972.0,91949.0,0.19682255]
[1732066561849,0.10906255,91972.0,91950.0,0.0455]
[1732066562054,0.10906255,91972.0,91951.0,0.00217464]
[1732066562488,0.10906255,91972.0,91950.0,0.0455]
[1732066563104,0.10906255,91972.0,91946.0,0.19682255]
[1732066563331,0.10906255,91972.0,91941.0,0.1936451]
[1732066563332,0.077,91971.0,91941.0,0.09682255]
[1732066563542,0.077,91971.0,91940.0,0.1]
[1732066563543,0.10906255,91970.0,91940.0,0.09682255]
[1732066563745,0.10906255,91970.0,91939.0,0.1]
[1732066563746,0.10906255,91970.0,91942.0,0.00217492]
[1732066563957,0.10906255,91970.0,91944.0,0.09682255]
[1732066564164,0.10906255,91970.0,91941.0,0.24523382]
[1732066564165,0.10906255,91970.0,91945.0,0.28079731]
[1732066564378,0.10906255,91970.0,91948.0,0.19682255]
[1732066564547,0.10906255,91970.0,91948.0,0.1]
[1732066565549,0.10906255,91970.0,91947.0,0.09682255]
[1732066565767,0.10906255,91970.0,91946.0,0.1]
[1732066566987,0.10906255,91970.0,91947.0,0.00217476]
[1732066567355,0.0008543,91972.0,91948.0,0.07531083]
[1732066567565,0.10991685,91972.0,91949.0,0.00217464]
[1732066568030,0.0008543,91972.0,91951.0,0.08682255]
[1732066568240,0.0008543,91972.0,91950.0,0.1]
[1732066568241,0.0008543,91972.0,91952.0,0.00217451]
[1732066569128,0.0008536,91977.0,91954.0,0.1]
[1732066569347,0.0008536,91977.0,91956.0,0.1]
[1732066569562,0.0008536,91977.0,91957.0,0.00217445]
[1732066569761,0.0008536,91977.0,91958.0,0.1]
[1732066569907,0.0008536,91977.0,91959.0,0.00217445]
[1732066570325,0.0008536,91977.0,91960.0,0.0779]
[1732066570521,0.0008536,91977.0,91961.0,0.00217434]
[1732066572118,0.0008536,91977.0,91962.0,0.0454]
[1732066572995,0.0008536,91977.0,91963.0,0.00217434]
[1732066575146,0.077,91984.0,91963.0,0.00217434]
[1732066575347,0.077,91984.0,91962.0,0.0454]
[1732066575498,0.077,91984.0,91963.0,0.1]
[1732066575719,0.076,91992.0,91963.0,0.1]
[1732066575926,0.076,91992.0,91965.0,0.1]
[1732066576257,0.076,91992.0,91968.0,0.24493498]
[1732066576488,0.076,91992.0,91969.0,0.00217421]
[1732066577262,0.076,91992.0,91970.0,0.14493498]
[1732066577461,0.076,91992.0,91971.0,0.10217421]
[1732066577918,0.076,91992.0,91973.0,0.09677431]
[1732066578229,0.076,91992.0,91976.0,0.09677431]
[1732066578459,0.076,91992.0,91975.0,0.19677431]
[1732066578686,0.076,91978.0,91975.0,0.1]
[1732066579553,0.076,91978.0,91973.0,0.09677431]
[1732066580218,0.076,91978.0,91974.0,0.09677431]
[1732066580430,0.076,91978.0,91973.0,0.09677431]
[1732066580631,0.076,91978.0,91971.0,0.1]
[1732066580632,0.076,91978.0,91972.0,0.09677431]
[1732066581278,0.076,91978.0,91974.0,0.09677431]
[1732066581904,0.076,91978.0,91973.0,0.1]
[1732066582107,0.076,91978.0,91974.0,0.09695357]
[1732066582313,0.076,91978.0,91977.0,0.09695357]
[1732066582528,0.076,91978.0,91976.0,0.09695357]
[1732066582743,0.076,91978.0,91977.0,0.1]
[1732066583458,0.076,91978.0,91977.0,0.24543036]
[1732066583657,0.0478,91986.0,91977.0,0.1]
[1732066583658,0.076,91984.0,91977.0,0.1]
[1732066583873,0.076,91984.0,91977.0,0.29390715]
[1732066584077,0.076,91984.0,91977.0,0.1]
[1732066584297,0.076,91984.0,91977.0,0.34238394]
[1732066584515,0.076,91984.0,91978.0,0.34238394]
[1732066584744,0.076,91984.0,91978.0,0.1]
[1732066585155,0.076,91984.0,91978.0,0.34257507]
[1732066585384,0.076,91984.0,91978.0,0.1]
[1732066585575,0.076,91984.0,91978.0,0.34264026]
[1732066585714,0.0004,91999.0,91978.0,0.34264026]
[1732066585715,0.0803,91993.0,91978.0,0.34264026]
[1732066586264,0.0803,91993.0,91978.0,0.1]
[1732066586687,0.0004,91999.0,91978.0,0.476908]
[1732066586906,0.0004,91999.0,91993.0,0.09705659]
[1732066587125,0.0004,91999.0,91991.0,0.14558488]
[1732066587126,0.0004,91999.0,91996.0,0.09705659]
[1732066587570,0.0004,91999.0,91995.0,0.1]
[1732066587571,0.0004,91999.0,91997.0,0.19707151]
[1732066587957,0.0004,91999.0,91997.0,0.1]
[1732066588438,0.0004,91999.0,91998.0,0.14558488]
[1732066588680,0.0004,91999.0,91998.0,0.24554122]
[1732066588889,0.0004,91999.0,91998.0,0.1]
[1732066589097,0.0004,91999.0,91998.0,0.10217368]
[1732066589315,0.0004,91999.0,91998.0,0.34481516]
[1732066589513,0.0004,91999.0,91998.0,0.34257237]
[1732066589739,0.0004,91999.0,91998.0,0.14306057]
[1732066590183,0.0004,91999.0,91998.0,0.04306057]
[1732066590415,0.0004,91999.0,91998.0,0.1]
[1732066591079,0.0004,91999.0,91998.0,0.29397645]
[1732066591294,0.0004,91999.0,91998.0,0.1]
[1732066591768,0.0004,91999.0,91998.0,0.24546686]
[1732066591981,0.0004,91999.0,91998.0,0.1]
[1732066593073,0.0803,92009.0,91999.0,0.1]
[1732066593280,0.0008532,92017.0,92003.0,0.09697807]
[1732066593490,0.0803,92016.0,92004.0,0.09697807]
[1732066593896,0.0803,92016.0,92002.0,0.24546711]
[1732066593897,0.0803,92016.0,92003.0,0.09697807]
[1732066594323,0.0803,92016.0,92004.0,0.09697807]
[1732066594530,0.0803,92016.0,92005.0,0.09697807]
[1732066594758,0.0803,92016.0,92004.0,0.09697807]
[1732066595377,0.0803,92016.0,92005.0,0.096967]
[1732066595829,0.0803,92016.0,92004.0,0.1]
[1732066596034,0.23736255,92007.0,92004.0,0.1]
[1732066596737,0.23736255,92007.0,91999.0,0.096967]
[1732066596738,0.23736255,92007.0,92000.0,0.096967]
[1732066597380,0.23736255,92007.0,91999.0,0.1]
[1732066597381,0.23736255,92007.0,92003.0,0.096967]
[1732066597597,0.18133357,92007.0,92003.0,0.196967]
[1732066597812,0.18133357,92007.0,92003.0,0.1]
[1732066598640,0.0811533,92007.0,92002.0,0.096967]
[1732066599597,0.0811533,92007.0,92001.0,0.196967]
[1732066599828,0.0811533,92007.0,92004.0,0.096967]
[1732066599980,0.0811533,92007.0,92005.0,0.096982]
[1732066600184,0.0811533,92007.0,92004.0,0.245473]
[1732066600386,0.0811533,92007.0,92004.0,0.196991]
[1732066600591,0.0008533,92007.0,92004.0,0.196991]
[1732066600821,0.0008533,92007.0,92006.0,0.096991]
[1732066601022,0.0008533,92007.0,92004.0,0.245473]
[1732066601230,0.0008533,92007.0,92006.0,0.1]
[1732066601902,0.0008533,92007.0,92006.0,0.245473]
[1732066602121,0.0008533,92007.0,92006.0,0.1]
[1732066602274,0.0008533,92007.0,92006.0,0.293964]
[1732066602470,0.0008135,92008.0,92005.0,0.1]
[1732066602689,0.01362,92013.0,92005.0,0.10217355]
[1732066603073,0.01362,92013.0,92012.0,0.29397933]
[1732066603280,0.01362,92013.0,92012.0,0.34247416]
[1732066603497,0.01362,92013.0,92012.0,0.1]
[1732066604151,0.01362,92013.0,92011.0,0.1]
[1732066604352,0.01362,92013.0,92012.0,0.29397967]
[1732066604756,0.01362,92013.0,92012.0,0.1]
[1732066604904,0.01362,92013.0,92012.0,0.29397967]
[1732066605313,0.01362,92013.0,92012.0,0.1]
[1732066605525,0.01362,92013.0,92012.0,0.24549751]
[1732066606317,0.0008532,92017.0,92010.0,0.19397967]
[1732066606318,0.0008532,92017.0,92013.0,0.1]
[1732066606521,0.0008532,92017.0,92015.0,0.09699816]
[1732066606745,0.0008532,92017.0,92015.0,0.14549751]
[1732066606972,0.0008532,92017.0,92016.0,0.1]
[1732066607178,0.0008532,92017.0,92016.0,0.245475]
[1732066607408,0.0008532,92017.0,92016.0,0.24547516]
[1732066608330,0.0008532,92017.0,92016.0,0.2454701]
[1732066609032,0.0008532,92017.0,92016.0,0.1]
[1732066609718,0.0008532,92017.0,92016.0,0.09697781]
[1732066609959,0.0008532,92017.0,92016.0,0.09698882]
[1732066610229,0.0008532,92017.0,92014.0,0.1]
[1732066610230,0.128,92016.0,92015.0,0.09698882]
[1732066610480,0.23706255,92016.0,92013.0,0.04435263]
[1732066610720,0.10906255,92015.0,92013.0,0.04435263]
[1732066610953,0.10906255,92015.0,92005.0,0.09698882]
[1732066611178,0.10906255,92015.0,92002.0,0.09698882]
[1732066611408,0.10906255,92015.0,91988.0,0.04513654]
[1732066611409,0.0806,92014.0,92000.0,0.09698882]
[1732066611644,0.10906255,92013.0,91998.0,0.09869502]
[1732066611887,0.10906255,92013.0,91998.0,0.0017062]
[1732066612762,0.10906255,92013.0,91999.0,0.09698882]
[1732066612991,0.10906255,92013.0,91998.0,0.09869502]
[1732066613638,0.10906255,92013.0,91999.0,0.09698882]
[1732066613849,0.10906255,92013.0,91999.0,0.09709489]
[1732066614769,0.10906255,92013.0,92000.0,0.09709489]
[1732066615006,0.0806,92012.0,92000.0,0.09709489]
[1732066615231,0.0806,92012.0,91998.0,0.04680773]
[1732066615232,0.0806,92007.0,91998.0,0.04680773]
[1732066615443,0.10906255,92006.0,91998.0,0.04680773]
[1732066618115,0.138,92005.0,91998.0,0.04680773]
[1732066618345,0.10906255,92004.0,91998.0,0.04680773]
[1732066619684,0.10906255,92004.0,92000.0,0.09716457]
[1732066619902,0.10906255,92004.0,92002.0,0.09716457]
[1732066621455,0.10906255,92004.0,92003.0,0.09716457]
[1732066621668,0.10906255,92004.0,92003.0,0.09719836]
[1732066621898,0.10906255,92004.0,92002.0,0.19719836]
[1732066622343,0.10906255,92004.0,92003.0,0.09719836]
[1732066623162,0.10991565,92004.0,92003.0,0.09719836]
[1732066623992,0.10991565,92004.0,92001.0,0.24579755]
[1732066624342,0.10991565,92004.0,91998.0,0.04680773]
[1732066624343,0.10991565,92004.0,92003.0,0.1]
[1732066625348,0.10991565,92004.0,92003.0,0.24579755]
[1732066625995,0.10991565,92004.0,92003.0,0.1]
[1732066626902,0.10991565,92004.0,92003.0,0.29446282]
[1732066627113,0.10991565,92004.0,92003.0,0.1]
[1732066627532,0.10991565,92004.0,92002.0,0.19446282]